[Event "Titled Tuesday Blitz August 22 Early 2023"]
[White "Balabayeva, Xeniya"]
[Black "Bacrot, Etienne"]
[WhiteFideId "13719688"]
[BlackFideId "605506"]
[WhiteElo "2504"]
[BlackElo "2833"]
[Result "0-1"]
[Round "3"]
[TimeControl "180+1"]
[Date "2023.08.22"]
[WhiteClock "0:00:00"]
[BlackClock "0:00:12"]
[Board "82"]

1. d4 {[%clk 0:03:00]}  d5 {[%clk 0:03:00]} 2. Bf4 {[%clk 0:03:00]}  Bf5 {[%clk 0:02:59]} 3. e3 {[%clk 0:02:50]}  e6 {[%clk 0:02:59]} 4. Nf3 {[%clk 0:02:48]}  Bd6 {[%clk 0:02:59]} 5. Ne5 {[%clk 0:02:44]}  h5 {[%clk 0:02:24]} 6. h4 {[%clk 0:02:19]}  f6 {[%clk 0:02:23]} 7. Nd3 {[%clk 0:01:51]}  Ne7 {[%clk 0:02:20]} 8. Be2 {[%clk 0:01:43]}  Bxd3 {[%clk 0:02:15]} 9. Qxd3 {[%clk 0:01:22]}  Nbc6 {[%clk 0:02:08]} 10. Nd2 {[%clk 0:01:00]}  Bxf4 {[%clk 0:02:08]} 11. exf4 {[%clk 0:00:56]}  Qd6 {[%clk 0:02:08]} 12. g3 {[%clk 0:00:44]}  Qb4 {[%clk 0:01:48]} 13. c3 {[%clk 0:00:35]}  Qxb2 {[%clk 0:01:48]} 14. Rb1 {[%clk 0:00:20]}  Qxa2 {[%clk 0:01:47]} 15. Rxb7 {[%clk 0:00:19]}  Kd7 {[%clk 0:01:47]} 16. O-O {[%clk 0:00:16]}  Rab8 {[%clk 0:01:43]} 17. Rfb1 {[%clk 0:00:14]}  g6 {[%clk 0:01:18]} 18. Rxb8 {[%clk 0:00:11]}  Rxb8 {[%clk 0:01:18]} 19. Rxb8 {[%clk 0:00:10]}  Nxb8 {[%clk 0:01:18]} 20. Bd1 {[%clk 0:00:10]}  Nbc6 {[%clk 0:01:13]} 21. Nb3 {[%clk 0:00:09]}  Ke8 {[%clk 0:00:38]} 22. Nc5 {[%clk 0:00:09]}  Kf7 {[%clk 0:00:38]} 23. Qe3 {[%clk 0:00:08]}  Nd8 {[%clk 0:00:38]} 24. Be2 {[%clk 0:00:06]}  Nf5 {[%clk 0:00:23]} 25. Qd3 {[%clk 0:00:04]}  Nd6 {[%clk 0:00:18]} 26. g4 {[%clk 0:00:02]}  hxg4 {[%clk 0:00:13]} 27. Bxg4 {[%clk 0:00:00]}  Qc4 {[%clk 0:00:12]} 0-1


[Site "https://www.chess.com"]

[Event "Titled Tuesday Blitz August 22 Early 2023"]
[White "Gogolev, Artem"]
[Black "Kosakowski, Jakub"]
[WhiteFideId "4116615"]
[BlackFideId "1185080"]
[WhiteElo "2503"]
[BlackElo "2785"]
[Result "0-1"]
[Round "3"]
[TimeControl "180+1"]
[Date "2023.08.22"]
[WhiteClock "0:00:02"]
[BlackClock "0:00:41"]
[Board "84"]

1. d4 {[%clk 0:03:00]}  Nf6 {[%clk 0:02:43]} 2. c4 {[%clk 0:03:00]}  e6 {[%clk 0:02:43]} 3. g3 {[%clk 0:02:54]}  c5 {[%clk 0:02:42]} 4. Nf3 {[%clk 0:02:53]}  cxd4 {[%clk 0:02:41]} 5. Nxd4 {[%clk 0:02:52]}  d5 {[%clk 0:02:41]} 6. Bg2 {[%clk 0:02:45]}  e5 {[%clk 0:02:41]} 7. Nf3 {[%clk 0:02:44]}  d4 {[%clk 0:02:41]} 8. O-O {[%clk 0:02:44]}  Nc6 {[%clk 0:02:42]} 9. e3 {[%clk 0:02:44]}  Be7 {[%clk 0:02:29]} 10. exd4 {[%clk 0:02:42]}  exd4 {[%clk 0:02:29]} 11. Bf4 {[%clk 0:02:34]}  O-O {[%clk 0:02:28]} 12. Ne5 {[%clk 0:02:12]}  Qb6 {[%clk 0:01:56]} 13. Qb3 {[%clk 0:02:04]}  Qxb3 {[%clk 0:01:35]} 14. axb3 {[%clk 0:02:03]}  Nb4 {[%clk 0:01:35]} 15. Na3 {[%clk 0:01:36]}  a6 {[%clk 0:01:21]} 16. Rfd1 {[%clk 0:01:30]}  Rd8 {[%clk 0:01:20]} 17. Nb5 {[%clk 0:01:16]}  Nc2 {[%clk 0:01:12]} 18. Rac1 {[%clk 0:01:13]}  axb5 {[%clk 0:01:12]} 19. Rxc2 {[%clk 0:01:06]}  Bf5 {[%clk 0:01:09]} 20. Rcc1 {[%clk 0:00:58]}  bxc4 {[%clk 0:01:07]} 21. Bxb7 {[%clk 0:00:47]}  Rab8 {[%clk 0:01:04]} 22. Nc6 {[%clk 0:00:47]}  Rxb7 {[%clk 0:01:04]} 23. Nxd8 {[%clk 0:00:47]}  Bxd8 {[%clk 0:01:04]} 24. Rxd4 {[%clk 0:00:43]}  Be7 {[%clk 0:01:02]} 25. Bd6 {[%clk 0:00:29]}  Rd7 {[%clk 0:00:51]} 26. Rcd1 {[%clk 0:00:26]}  cxb3 {[%clk 0:00:45]} 27. Bxe7 {[%clk 0:00:16]}  Rxe7 {[%clk 0:00:45]} 28. Rd8+ {[%clk 0:00:15]}  Ne8 {[%clk 0:00:46]} 29. Rb8 {[%clk 0:00:15]}  Bc2 {[%clk 0:00:45]} 30. Rdd8 {[%clk 0:00:15]}  Kf8 {[%clk 0:00:45]} 31. f3 {[%clk 0:00:14]}  f6 {[%clk 0:00:45]} 32. Kf2 {[%clk 0:00:15]}  Kf7 {[%clk 0:00:45]} 33. Rb4 {[%clk 0:00:12]}  Nc7 {[%clk 0:00:43]} 34. Rb7 {[%clk 0:00:12]}  Ne6 {[%clk 0:00:43]} 35. Rxe7+ {[%clk 0:00:12]}  Kxe7 {[%clk 0:00:44]} 36. Rg8 {[%clk 0:00:11]}  Kf7 {[%clk 0:00:44]} 37. Rb8 {[%clk 0:00:11]}  Nc5 {[%clk 0:00:44]} 38. Ke3 {[%clk 0:00:11]}  Nd3 {[%clk 0:00:44]} 39. Rb7+ {[%clk 0:00:10]}  Kg6 {[%clk 0:00:44]} 40. Kd2 {[%clk 0:00:05]}  Nxb2 {[%clk 0:00:44]} 41. Rb4 {[%clk 0:00:04]}  Nd3 {[%clk 0:00:42]} 42. Rg4+ {[%clk 0:00:05]}  Kf7 {[%clk 0:00:42]} 43. Rh4 {[%clk 0:00:05]}  Ne5 {[%clk 0:00:41]} 44. Rb4 {[%clk 0:00:05]}  Nxf3+ {[%clk 0:00:41]} 45. Ke3 {[%clk 0:00:05]}  Nxh2 {[%clk 0:00:41]} 46. Kf2 {[%clk 0:00:06]}  h5 {[%clk 0:00:41]} 47. Rb7+ {[%clk 0:00:04]}  Kg6 {[%clk 0:00:40]} 48. Kg2 {[%clk 0:00:04]}  Be4+ {[%clk 0:00:41]} 49. Kxh2 {[%clk 0:00:02]}  Bxb7 {[%clk 0:00:41]} 0-1


[Site "https://www.chess.com"]

[Event "Titled Tuesday Blitz August 22 Early 2023"]
[White "Materia, Marco"]
[Black "feuervogel1000000"]
[WhiteFideId "45150451"]
[WhiteElo "2784"]
[BlackElo "2503"]
[Result "1-0"]
[Round "3"]
[TimeControl "180+1"]
[Date "2023.08.22"]
[WhiteClock "0:02:22"]
[BlackClock "0:01:45"]
[Board "85"]

1. d4 {[%clk 0:03:00]}  Nf6 {[%clk 0:02:48]} 2. c4 {[%clk 0:03:00]}  e6 {[%clk 0:02:48]} 3. Nf3 {[%clk 0:03:00]}  b6 {[%clk 0:02:48]} 4. g3 {[%clk 0:03:00]}  Bb7 {[%clk 0:02:48]} 5. Bg2 {[%clk 0:03:00]}  Bb4+ {[%clk 0:02:48]} 6. Bd2 {[%clk 0:03:00]}  Be7 {[%clk 0:02:46]} 7. O-O {[%clk 0:02:58]}  O-O {[%clk 0:02:46]} 8. Nc3 {[%clk 0:02:56]}  Ne4 {[%clk 0:02:46]} 9. d5 {[%clk 0:02:49]}  exd5 {[%clk 0:02:40]} 10. cxd5 {[%clk 0:02:48]}  Nxc3 {[%clk 0:02:38]} 11. Bxc3 {[%clk 0:02:48]}  Bf6 {[%clk 0:02:35]} 12. Rc1 {[%clk 0:02:47]}  Na6 {[%clk 0:02:29]} 13. Nd4 {[%clk 0:02:30]}  Re8 {[%clk 0:02:24]} 14. e4 {[%clk 0:02:29]}  Nc5 {[%clk 0:02:21]} 15. Re1 {[%clk 0:02:29]}  Ba6 {[%clk 0:02:12]} 16. Re3 {[%clk 0:02:26]}  g6 {[%clk 0:02:01]} 17. b4 {[%clk 0:02:23]}  Nb7 {[%clk 0:01:45]} 18. b5 {[%clk 0:02:22]} 1-0


[Site "https://www.chess.com"]

[Event "Titled Tuesday Blitz August 22 Early 2023"]
[White "Starozhilov, Leonid"]
[Black "slidingknight2775"]
[WhiteFideId "14106752"]
[WhiteElo "2763"]
[BlackElo "2501"]
[Result "1-0"]
[Round "3"]
[TimeControl "180+1"]
[Date "2023.08.22"]
[WhiteClock "0:01:09"]
[BlackClock "0:00:00"]
[Board "86"]

1. e4 {[%clk 0:03:00]}  c5 {[%clk 0:02:59]} 2. Nf3 {[%clk 0:02:59]}  d6 {[%clk 0:02:58]} 3. Bb5+ {[%clk 0:02:59]}  Nd7 {[%clk 0:02:58]} 4. O-O {[%clk 0:02:59]}  a6 {[%clk 0:02:58]} 5. Bxd7+ {[%clk 0:02:59]}  Bxd7 {[%clk 0:02:59]} 6. Re1 {[%clk 0:02:59]}  Nf6 {[%clk 0:02:54]} 7. c3 {[%clk 0:02:59]}  e6 {[%clk 0:02:51]} 8. d4 {[%clk 0:02:59]}  cxd4 {[%clk 0:02:51]} 9. cxd4 {[%clk 0:03:00]}  d5 {[%clk 0:02:51]} 10. e5 {[%clk 0:03:01]}  Ne4 {[%clk 0:02:51]} 11. Nbd2 {[%clk 0:03:02]}  Nxd2 {[%clk 0:02:45]} 12. Bxd2 {[%clk 0:03:03]}  Be7 {[%clk 0:02:45]} 13. Qb3 {[%clk 0:03:02]}  Bc6 {[%clk 0:02:42]} 14. Bb4 {[%clk 0:03:03]}  O-O {[%clk 0:02:40]} 15. Rac1 {[%clk 0:02:58]}  Rc8 {[%clk 0:02:33]} 16. Bc5 {[%clk 0:02:42]}  Qd7 {[%clk 0:01:42]} 17. Rc3 {[%clk 0:02:37]}  Bxc5 {[%clk 0:01:27]} 18. Rxc5 {[%clk 0:02:36]}  Bb5 {[%clk 0:01:08]} 19. Rec1 {[%clk 0:02:25]}  b6 {[%clk 0:01:07]} 20. Rxc8 {[%clk 0:02:17]}  Rxc8 {[%clk 0:01:08]} 21. Rc3 {[%clk 0:02:17]}  h6 {[%clk 0:00:44]} 22. h3 {[%clk 0:02:16]}  Rxc3 {[%clk 0:00:34]} 23. Qxc3 {[%clk 0:02:16]}  Qc6 {[%clk 0:00:34]} 24. Qxc6 {[%clk 0:02:08]}  Bxc6 {[%clk 0:00:35]} 25. Kf1 {[%clk 0:02:08]}  Kf8 {[%clk 0:00:34]} 26. Ke1 {[%clk 0:02:09]}  Ke7 {[%clk 0:00:32]} 27. Kd2 {[%clk 0:02:09]}  Bb5 {[%clk 0:00:31]} 28. Nh2 {[%clk 0:02:03]}  a5 {[%clk 0:00:29]} 29. f4 {[%clk 0:02:03]}  Bc4 {[%clk 0:00:27]} 30. a3 {[%clk 0:01:58]}  Ba6 {[%clk 0:00:23]} 31. g4 {[%clk 0:01:55]}  Bc4 {[%clk 0:00:22]} 32. h4 {[%clk 0:01:54]}  Ba6 {[%clk 0:00:19]} 33. Ke3 {[%clk 0:01:55]}  Bc4 {[%clk 0:00:18]} 34. h5 {[%clk 0:01:54]}  Bb3 {[%clk 0:00:17]} 35. Kd2 {[%clk 0:01:50]}  Bc4 {[%clk 0:00:16]} 36. g5 {[%clk 0:01:50]}  Kf8 {[%clk 0:00:05]} 37. Ng4 {[%clk 0:01:49]}  hxg5 {[%clk 0:00:06]} 38. fxg5 {[%clk 0:01:50]}  Bb3 {[%clk 0:00:05]} 39. h6 {[%clk 0:01:47]}  Kg8 {[%clk 0:00:06]} 40. Ke3 {[%clk 0:01:36]}  Bd1 {[%clk 0:00:05]} 41. Nf2 {[%clk 0:01:34]}  Bb3 {[%clk 0:00:06]} 42. Kf4 {[%clk 0:01:30]}  Bc2 {[%clk 0:00:05]} 43. Ng4 {[%clk 0:01:23]}  Bf5 {[%clk 0:00:03]} 44. Ne3 {[%clk 0:01:23]}  Bd3 {[%clk 0:00:03]} 45. b4 {[%clk 0:01:20]}  axb4 {[%clk 0:00:03]} 46. axb4 {[%clk 0:01:20]}  Be2 {[%clk 0:00:03]} 47. Nc2 {[%clk 0:01:18]}  Bc4 {[%clk 0:00:03]} 48. Ne1 {[%clk 0:01:16]}  Be2 {[%clk 0:00:03]} 49. Ng2 {[%clk 0:01:14]}  Bd3 {[%clk 0:00:00]} 50. Nh4 {[%clk 0:01:09]} 1-0


[Site "https://www.chess.com"]

[Event "Titled Tuesday Blitz August 22 Early 2023"]
[White "Koutlas, Nikolaos"]
[Black "Wagner, Dennis"]
[WhiteFideId "25827138"]
[BlackFideId "24650684"]
[WhiteElo "2500"]
[BlackElo "2759"]
[Result "1-0"]
[Round "3"]
[TimeControl "180+1"]
[Date "2023.08.22"]
[WhiteClock "0:00:21"]
[BlackClock "0:00:06"]
[Board "87"]

1. e4 {[%clk 0:02:59]}  e5 {[%clk 0:03:00]} 2. Nf3 {[%clk 0:02:58]}  Nc6 {[%clk 0:03:00]} 3. Bc4 {[%clk 0:02:57]}  Nf6 {[%clk 0:03:00]} 4. d3 {[%clk 0:02:54]}  Bc5 {[%clk 0:03:00]} 5. O-O {[%clk 0:02:53]}  h6 {[%clk 0:02:59]} 6. c3 {[%clk 0:02:53]}  d6 {[%clk 0:02:58]} 7. a4 {[%clk 0:02:52]}  a6 {[%clk 0:02:57]} 8. b4 {[%clk 0:02:48]}  Ba7 {[%clk 0:02:56]} 9. Be3 {[%clk 0:02:49]}  O-O {[%clk 0:02:48]} 10. Nbd2 {[%clk 0:02:42]}  Ne7 {[%clk 0:02:47]} 11. Bxa7 {[%clk 0:02:40]}  Rxa7 {[%clk 0:02:48]} 12. Re1 {[%clk 0:02:31]}  Ng6 {[%clk 0:02:47]} 13. d4 {[%clk 0:02:31]}  Re8 {[%clk 0:02:46]} 14. Qb3 {[%clk 0:02:26]}  Qe7 {[%clk 0:02:32]} 15. dxe5 {[%clk 0:02:24]}  dxe5 {[%clk 0:02:28]} 16. Nf1 {[%clk 0:02:24]}  c6 {[%clk 0:02:13]} 17. a5 {[%clk 0:02:19]}  Nh5 {[%clk 0:01:50]} 18. Ng3 {[%clk 0:02:15]}  Nxg3 {[%clk 0:01:41]} 19. hxg3 {[%clk 0:02:13]}  Ra8 {[%clk 0:01:39]} 20. Rad1 {[%clk 0:02:12]}  Bg4 {[%clk 0:01:39]} 21. Rd3 {[%clk 0:02:12]}  Be6 {[%clk 0:01:12]} 22. Bxe6 {[%clk 0:02:07]}  Qxe6 {[%clk 0:01:02]} 23. Qxe6 {[%clk 0:02:05]}  Rxe6 {[%clk 0:01:02]} 24. Rd7 {[%clk 0:02:05]}  Rb8 {[%clk 0:01:03]} 25. Red1 {[%clk 0:02:03]}  Kf8 {[%clk 0:00:51]} 26. Kf1 {[%clk 0:01:36]}  Re7 {[%clk 0:00:50]} 27. Ke2 {[%clk 0:01:34]}  Rxd7 {[%clk 0:00:35]} 28. Rxd7 {[%clk 0:01:34]}  f6 {[%clk 0:00:29]} 29. Kd3 {[%clk 0:01:23]}  Ne7 {[%clk 0:00:29]} 30. Kc4 {[%clk 0:01:17]}  Ke8 {[%clk 0:00:29]} 31. Rd2 {[%clk 0:01:14]}  Rd8 {[%clk 0:00:22]} 32. Kc5 {[%clk 0:01:12]}  Rxd2 {[%clk 0:00:19]} 33. Nxd2 {[%clk 0:01:12]}  Nc8 {[%clk 0:00:20]} 34. Nc4 {[%clk 0:01:11]}  Ke7 {[%clk 0:00:18]} 35. g4 {[%clk 0:01:08]}  g6 {[%clk 0:00:17]} 36. g3 {[%clk 0:01:01]}  Ke6 {[%clk 0:00:18]} 37. Nb6 {[%clk 0:00:53]}  Nd6 {[%clk 0:00:18]} 38. f3 {[%clk 0:00:53]}  f5 {[%clk 0:00:15]} 39. gxf5+ {[%clk 0:00:52]}  gxf5 {[%clk 0:00:16]} 40. Nc4 {[%clk 0:00:47]}  Nxc4 {[%clk 0:00:14]} 41. Kxc4 {[%clk 0:00:47]}  fxe4 {[%clk 0:00:14]} 42. fxe4 {[%clk 0:00:47]}  Kd6 {[%clk 0:00:14]} 43. g4 {[%clk 0:00:45]}  Kd7 {[%clk 0:00:13]} 44. Kc5 {[%clk 0:00:45]}  Kc7 {[%clk 0:00:13]} 45. c4 {[%clk 0:00:44]}  Kd7 {[%clk 0:00:12]} 46. Kb6 {[%clk 0:00:39]}  Kc8 {[%clk 0:00:12]} 47. b5 {[%clk 0:00:23]}  cxb5 {[%clk 0:00:10]} 48. cxb5 {[%clk 0:00:24]}  axb5 {[%clk 0:00:09]} 49. Kxb5 {[%clk 0:00:25]}  Kb8 {[%clk 0:00:07]} 50. Kc5 {[%clk 0:00:20]}  Ka7 {[%clk 0:00:07]} 51. Kd5 {[%clk 0:00:20]}  Ka6 {[%clk 0:00:08]} 52. Kxe5 {[%clk 0:00:20]}  Kxa5 {[%clk 0:00:09]} 53. Kd6 {[%clk 0:00:17]}  b5 {[%clk 0:00:08]} 54. e5 {[%clk 0:00:18]}  b4 {[%clk 0:00:09]} 55. e6 {[%clk 0:00:19]}  b3 {[%clk 0:00:09]} 56. e7 {[%clk 0:00:20]}  b2 {[%clk 0:00:10]} 57. e8=Q {[%clk 0:00:20]}  b1=Q {[%clk 0:00:10]} 58. Qa8+ {[%clk 0:00:21]}  Kb6 {[%clk 0:00:07]} 59. Qb8+ {[%clk 0:00:21]}  Ka6 {[%clk 0:00:06]} 60. Qxb1 {[%clk 0:00:21]} 1-0


[Site "https://www.chess.com"]

[Event "Titled Tuesday Blitz August 22 Early 2023"]
[White "Orozbaev, Eldiar"]
[Black "Yedidia, Daniel"]
[WhiteFideId "13802240"]
[BlackFideId "30905907"]
[WhiteElo "2744"]
[BlackElo "2499"]
[Result "1-0"]
[Round "3"]
[TimeControl "180+1"]
[Date "2023.08.22"]
[WhiteClock "0:01:11"]
[BlackClock "0:00:05"]
[Board "88"]

1. e4 {[%clk 0:02:47]}  e5 {[%clk 0:02:57]} 2. Nf3 {[%clk 0:02:47]}  Nc6 {[%clk 0:02:57]} 3. d4 {[%clk 0:02:47]}  exd4 {[%clk 0:02:57]} 4. c3 {[%clk 0:02:46]}  d5 {[%clk 0:02:56]} 5. Bd3 {[%clk 0:02:44]}  Nf6 {[%clk 0:02:48]} 6. e5 {[%clk 0:02:42]}  Ne4 {[%clk 0:02:49]} 7. O-O {[%clk 0:02:42]}  Be7 {[%clk 0:02:43]} 8. Re1 {[%clk 0:02:40]}  Nc5 {[%clk 0:02:41]} 9. cxd4 {[%clk 0:02:38]}  Nxd3 {[%clk 0:02:41]} 10. Qxd3 {[%clk 0:02:38]}  O-O {[%clk 0:02:41]} 11. Nc3 {[%clk 0:02:38]}  Nb4 {[%clk 0:02:39]} 12. Qe2 {[%clk 0:02:24]}  Bf5 {[%clk 0:02:36]} 13. Rd1 {[%clk 0:02:17]}  Bc2 {[%clk 0:02:11]} 14. Rd2 {[%clk 0:02:13]}  Bg6 {[%clk 0:02:12]} 15. a3 {[%clk 0:02:12]}  Nc6 {[%clk 0:02:11]} 16. Rd1 {[%clk 0:02:13]}  Na5 {[%clk 0:02:10]} 17. Bf4 {[%clk 0:02:02]}  c6 {[%clk 0:02:02]} 18. Re1 {[%clk 0:01:57]}  Nb3 {[%clk 0:01:57]} 19. Rad1 {[%clk 0:01:57]}  a5 {[%clk 0:01:55]} 20. Qe3 {[%clk 0:01:42]}  Bc2 {[%clk 0:01:40]} 21. h4 {[%clk 0:01:24]}  Bxd1 {[%clk 0:01:35]} 22. Nxd1 {[%clk 0:01:24]}  a4 {[%clk 0:01:34]} 23. h5 {[%clk 0:01:25]}  c5 {[%clk 0:01:27]} 24. h6 {[%clk 0:01:24]}  g6 {[%clk 0:01:19]} 25. e6 {[%clk 0:01:24]}  Bf6 {[%clk 0:01:18]} 26. e7 {[%clk 0:01:22]}  Bxe7 {[%clk 0:01:09]} 27. Qxe7 {[%clk 0:01:22]}  Qxe7 {[%clk 0:01:09]} 28. Rxe7 {[%clk 0:01:23]}  b6 {[%clk 0:00:58]} 29. Ne3 {[%clk 0:01:19]}  Rad8 {[%clk 0:00:33]} 30. Bc7 {[%clk 0:01:11]}  cxd4 {[%clk 0:00:08]} 31. Bxd8 {[%clk 0:01:10]}  dxe3 {[%clk 0:00:09]} 32. Bxb6 {[%clk 0:01:10]}  exf2+ {[%clk 0:00:05]} 33. Bxf2 {[%clk 0:01:11]} 1-0


[Site "https://www.chess.com"]

[Event "Titled Tuesday Blitz August 22 Early 2023"]
[White "Blanco Ronquillo, Humberto L."]
[Black "Korelskiy, Egor"]
[WhiteFideId "3504239"]
[BlackFideId "34329064"]
[WhiteElo "2729"]
[BlackElo "2492"]
[Result "0-1"]
[Round "3"]
[TimeControl "180+1"]
[Date "2023.08.22"]
[WhiteClock "0:00:47"]
[BlackClock "0:00:42"]
[Board "89"]

1. e4 {[%clk 0:03:00]}  c5 {[%clk 0:03:00]} 2. c3 {[%clk 0:02:59]}  e6 {[%clk 0:03:00]} 3. d4 {[%clk 0:02:58]}  d5 {[%clk 0:03:00]} 4. e5 {[%clk 0:02:58]}  Nc6 {[%clk 0:03:00]} 5. Nf3 {[%clk 0:02:56]}  Qb6 {[%clk 0:03:00]} 6. a3 {[%clk 0:02:52]}  c4 {[%clk 0:02:58]} 7. g3 {[%clk 0:02:49]}  Na5 {[%clk 0:02:58]} 8. Nbd2 {[%clk 0:02:48]}  Bd7 {[%clk 0:02:58]} 9. Bg2 {[%clk 0:02:44]}  Ne7 {[%clk 0:02:57]} 10. O-O {[%clk 0:02:38]}  Nc8 {[%clk 0:02:55]} 11. Ne1 {[%clk 0:02:38]}  Qc7 {[%clk 0:02:54]} 12. f4 {[%clk 0:02:37]}  Nb6 {[%clk 0:02:54]} 13. g4 {[%clk 0:02:35]}  O-O-O {[%clk 0:02:33]} 14. Nef3 {[%clk 0:02:27]}  Ba4 {[%clk 0:02:30]} 15. Qe2 {[%clk 0:02:26]}  Nb3 {[%clk 0:02:08]} 16. Nxb3 {[%clk 0:02:26]}  cxb3 {[%clk 0:02:08]} 17. Be3 {[%clk 0:02:25]}  Nc4 {[%clk 0:02:07]} 18. Bf2 {[%clk 0:02:24]}  Bb5 {[%clk 0:02:06]} 19. Qd1 {[%clk 0:02:17]}  Nxb2 {[%clk 0:02:04]} 20. Qxb3 {[%clk 0:02:16]}  Bxf1 {[%clk 0:01:58]} 21. Qxb2 {[%clk 0:02:17]}  Bxg2 {[%clk 0:01:58]} 22. Kxg2 {[%clk 0:02:17]}  Be7 {[%clk 0:01:56]} 23. a4 {[%clk 0:02:15]}  Kb8 {[%clk 0:01:56]} 24. a5 {[%clk 0:02:15]}  Rc8 {[%clk 0:01:55]} 25. a6 {[%clk 0:02:13]}  b6 {[%clk 0:01:55]} 26. Be1 {[%clk 0:02:09]}  Qc4 {[%clk 0:01:53]} 27. Qf2 {[%clk 0:02:06]}  h5 {[%clk 0:01:40]} 28. h3 {[%clk 0:02:04]}  hxg4 {[%clk 0:01:39]} 29. hxg4 {[%clk 0:02:05]}  f6 {[%clk 0:01:36]} 30. Bd2 {[%clk 0:02:03]}  f5 {[%clk 0:01:32]} 31. gxf5 {[%clk 0:02:02]}  exf5 {[%clk 0:01:31]} 32. Qg3 {[%clk 0:01:53]}  Qc6 {[%clk 0:01:28]} 33. Kf2 {[%clk 0:01:51]}  g6 {[%clk 0:01:27]} 34. Ke3 {[%clk 0:01:40]}  Rhg8 {[%clk 0:01:22]} 35. Rh1 {[%clk 0:01:39]}  Qa4 {[%clk 0:01:19]} 36. Rh7 {[%clk 0:01:37]}  Qa3 {[%clk 0:01:16]} 37. Qh2 {[%clk 0:01:20]}  Bb4 {[%clk 0:01:10]} 38. Rb7+ {[%clk 0:01:15]}  Ka8 {[%clk 0:01:09]} 39. Qh7 {[%clk 0:01:16]}  Qxa6 {[%clk 0:01:09]} 40. Rd7 {[%clk 0:01:13]}  Bxc3 {[%clk 0:01:06]} 41. Qf7 {[%clk 0:01:11]}  Bxd2+ {[%clk 0:01:05]} 42. Nxd2 {[%clk 0:01:12]}  Qa5 {[%clk 0:00:49]} 43. Rxd5 {[%clk 0:01:12]}  Qc3+ {[%clk 0:00:47]} 44. Ke2 {[%clk 0:01:12]}  Rh8 {[%clk 0:00:45]} 45. Rd7 {[%clk 0:00:46]}  Rh2+ {[%clk 0:00:42]} 46. Kf1 {[%clk 0:00:47]}  Qc1# {[%clk 0:00:42]} 0-1


[Site "https://www.chess.com"]

[Event "Titled Tuesday Blitz August 22 Early 2023"]
[White "Javakhadze, Zurab"]
[Black "Khamdamova, Afruza"]
[WhiteFideId "13603647"]
[BlackFideId "14210444"]
[WhiteElo "2690"]
[BlackElo "2483"]
[Result "1-0"]
[Round "3"]
[TimeControl "180+1"]
[Date "2023.08.22"]
[WhiteClock "0:01:08"]
[BlackClock "0:00:13"]
[Board "93"]

1. c4 {[%clk 0:03:00]}  e6 {[%clk 0:02:58]} 2. Nc3 {[%clk 0:02:59]}  d5 {[%clk 0:02:58]} 3. d4 {[%clk 0:03:00]}  Nf6 {[%clk 0:02:57]} 4. Nf3 {[%clk 0:02:59]}  Be7 {[%clk 0:02:57]} 5. g3 {[%clk 0:02:59]}  O-O {[%clk 0:02:52]} 6. Bg2 {[%clk 0:03:00]}  dxc4 {[%clk 0:02:49]} 7. Qa4 {[%clk 0:02:59]}  a6 {[%clk 0:02:46]} 8. Qxc4 {[%clk 0:02:59]}  b5 {[%clk 0:02:46]} 9. Qd3 {[%clk 0:03:00]}  Bb7 {[%clk 0:02:46]} 10. O-O {[%clk 0:03:00]}  Nbd7 {[%clk 0:02:46]} 11. Rd1 {[%clk 0:03:01]}  c5 {[%clk 0:02:45]} 12. dxc5 {[%clk 0:03:00]}  Bxc5 {[%clk 0:02:34]} 13. Ng5 {[%clk 0:02:59]}  Bxg2 {[%clk 0:02:31]} 14. Kxg2 {[%clk 0:03:00]}  Qb6 {[%clk 0:02:19]} 15. Nce4 {[%clk 0:02:58]}  Rad8 {[%clk 0:02:14]} 16. Bf4 {[%clk 0:02:29]}  h6 {[%clk 0:01:59]} 17. Nf3 {[%clk 0:02:29]}  Nxe4 {[%clk 0:01:57]} 18. Qxe4 {[%clk 0:02:30]}  Nf6 {[%clk 0:01:55]} 19. Qc2 {[%clk 0:02:16]}  Nd5 {[%clk 0:01:55]} 20. e3 {[%clk 0:02:16]}  Rc8 {[%clk 0:01:51]} 21. Qe2 {[%clk 0:02:09]}  Qb7 {[%clk 0:01:33]} 22. Be5 {[%clk 0:02:07]}  Rfd8 {[%clk 0:01:30]} 23. Bd4 {[%clk 0:01:56]}  Bxd4 {[%clk 0:01:28]} 24. Rxd4 {[%clk 0:01:57]}  Nb6 {[%clk 0:01:27]} 25. Rad1 {[%clk 0:01:55]}  Rxd4 {[%clk 0:01:27]} 26. Rxd4 {[%clk 0:01:56]}  Nc4 {[%clk 0:01:26]} 27. e4 {[%clk 0:01:48]}  Qb6 {[%clk 0:01:17]} 28. Rd7 {[%clk 0:01:40]}  Qc6 {[%clk 0:01:13]} 29. Rd1 {[%clk 0:01:37]}  Nd6 {[%clk 0:01:08]} 30. Rd4 {[%clk 0:01:31]}  Nc4 {[%clk 0:00:57]} 31. b3 {[%clk 0:01:28]}  Nb6 {[%clk 0:00:51]} 32. Qd3 {[%clk 0:01:26]}  a5 {[%clk 0:00:49]} 33. Ne5 {[%clk 0:01:23]}  Qc7 {[%clk 0:00:48]} 34. Qxb5 {[%clk 0:01:20]}  Rb8 {[%clk 0:00:41]} 35. Qxa5 {[%clk 0:01:17]}  Ra8 {[%clk 0:00:39]} 36. Qb5 {[%clk 0:01:10]}  Rxa2 {[%clk 0:00:21]} 37. Qe8+ {[%clk 0:01:10]}  Kh7 {[%clk 0:00:21]} 38. Nxf7 {[%clk 0:01:11]}  Qc2 {[%clk 0:00:17]} 39. Qh8+ {[%clk 0:01:09]}  Kg6 {[%clk 0:00:16]} 40. Ne5+ {[%clk 0:01:10]}  Kf6 {[%clk 0:00:16]} 41. Ng4+ {[%clk 0:01:09]}  Kg6 {[%clk 0:00:16]} 42. Qe8+ {[%clk 0:01:08]}  Kh7 {[%clk 0:00:16]} 43. Nf6+ {[%clk 0:01:07]}  gxf6 {[%clk 0:00:13]} 44. Qf7+ {[%clk 0:01:08]} 1-0


[Site "https://www.chess.com"]

[Event "Titled Tuesday Blitz August 22 Early 2023"]
[White "Fernandez Lopez, Ruben"]
[Black "Hua, Lefong"]
[WhiteFideId "24518298"]
[BlackFideId "2602253"]
[WhiteElo "2482"]
[BlackElo "2683"]
[Result "0-1"]
[Round "3"]
[TimeControl "180+1"]
[Date "2023.08.22"]
[WhiteClock "0:02:17"]
[BlackClock "0:01:03"]
[Board "94"]

1. b3 {[%clk 0:03:00]}  Nf6 {[%clk 0:03:00]} 2. Bb2 {[%clk 0:03:01]}  g6 {[%clk 0:03:00]} 3. e3 {[%clk 0:03:01]}  Bg7 {[%clk 0:03:01]} 4. c4 {[%clk 0:03:02]}  O-O {[%clk 0:03:01]} 5. Nf3 {[%clk 0:03:03]}  c5 {[%clk 0:03:02]} 6. Be2 {[%clk 0:03:03]}  Nc6 {[%clk 0:03:02]} 7. O-O {[%clk 0:03:04]}  d6 {[%clk 0:03:02]} 8. d4 {[%clk 0:03:04]}  Ne4 {[%clk 0:03:03]} 9. Nc3 {[%clk 0:03:04]}  Bf5 {[%clk 0:03:01]} 10. Nxe4 {[%clk 0:03:01]}  Bxe4 {[%clk 0:03:01]} 11. Qc1 {[%clk 0:03:00]}  e5 {[%clk 0:02:50]} 12. dxc5 {[%clk 0:02:59]}  dxc5 {[%clk 0:02:50]} 13. Rd1 {[%clk 0:02:59]}  Qe7 {[%clk 0:02:49]} 14. Nd2 {[%clk 0:02:58]}  Bf5 {[%clk 0:02:48]} 15. Bf3 {[%clk 0:02:52]}  e4 {[%clk 0:02:43]} 16. Bxg7 {[%clk 0:02:51]}  Kxg7 {[%clk 0:02:42]} 17. Be2 {[%clk 0:02:52]}  h5 {[%clk 0:02:34]} 18. Nb1 {[%clk 0:02:51]}  Ne5 {[%clk 0:02:30]} 19. Nc3 {[%clk 0:02:51]}  h4 {[%clk 0:02:24]} 20. Nd5 {[%clk 0:02:50]}  Qg5 {[%clk 0:02:23]} 21. Qc3 {[%clk 0:02:49]}  f6 {[%clk 0:02:16]} 22. Nf4 {[%clk 0:02:49]}  h3 {[%clk 0:02:04]} 23. g3 {[%clk 0:02:48]}  Bg4 {[%clk 0:01:52]} 24. Rd5 {[%clk 0:02:48]}  Kh6 {[%clk 0:01:42]} 25. Rad1 {[%clk 0:02:36]}  Bxe2 {[%clk 0:01:37]} 26. Nxe2 {[%clk 0:02:36]}  Qg4 {[%clk 0:01:23]} 27. Nf4 {[%clk 0:02:35]}  g5 {[%clk 0:01:12]} 28. Rxe5 {[%clk 0:02:17]}  Qxd1+ {[%clk 0:01:03]} 0-1


[Site "https://www.chess.com"]